[Event "Klatovy Open-C 2024"]
[Site "Klatovy"]
[Date "2024.07.02"]
[Round "4.6"]
[White "Mlynek, Petr"]
[Black "Zidu, Jan"]
[Result "1-0"]
[ECO "D08"]
[WhiteElo "1969"]
[BlackElo "1905"]
[Annotator "NA RC"]
[PlyCount "95"]
[EventDate "2024.06.21"]
[EventType "swiss"]
[EventCountry "CZE"]
[SourceTitle "playchess.com"]
[Source "ChessBase"]
[SourceQuality "1"]
[TimeControl "40/7200:0"]

1. d4 {[%emt 0:00:00]} d5 {[%emt 0:00:00]} 2. c4 {[%emt 0:00:00]} e5 {[%emt 0:00:00]} 3. dxe5 {[%emt 0:00:00]} d4 {[%emt 0:00:00]} 4. Nf3 {[%emt 0:00:00]} Nc6 {[%emt 0:00:00]} 5. a3 {[%emt 0:00:00]} Nge7 {[%emt 0:00:00]} 6. Bf4 {[%emt 0:10:01]} Ng6 {[%emt 0:00:00]} 7. Bg3 {[%emt 0:00:00]} Bg4 {[%emt 0:00:58]} 8. Nbd2 {[%emt 0:00:00]} a5 {[%emt 0:02:37]} 9. h3 {[%emt 0:01:44]} Bf5 {[%emt 0:03:40]} 10. Nb3 {[%emt 0:01:30]} Qe7 {[%emt 0:02:15]} 11. Nbxd4 {[%emt 0:02:50]} O-O-O {[%emt 0:00:36]} 12. e3 {[%emt 0:01:28]} Ngxe5 {[%emt 0:00:15]} 13. Nxe5 {[%emt 0:00:26]} Nxe5 {[%emt 0:00:00]} 14. Qa4 {[%emt 0:00:02]} Rxd4 {[%emt 0:06:44]} 15. Qxa5 {[%emt 0:05:03]} Nd3+ {[%emt 0:39:36]} 16. Bxd3 {[%emt 0:08:08]} Bxd3 {[%emt 0:00:00]} 17. Qa8+ {[%emt 0:00:00]} Kd7 {[%emt 0:00:00]} 18. Qxb7 {[%emt 0:00:00]} Ke8 {[%emt 0:05:18]} 19. Bxc7 {[%emt 0:01:10]} f5 {[%emt 0:04:32]} 20. Rd1 {[%emt 0:03:54]} Kf7 {[%emt 0:05:10]} 21. c5 {[%emt 0:03:06]} Ba6 {[%emt 0:07:57]} 22. Qxa6 {[%emt 0:05:40]} Rxd1+ {[%emt 0:00:00]} 23. Kxd1 {[%emt 0:00:00]} Qxc7 {[%emt 0:00:00]} 24. Qc4+ {[%emt 0:00:07]} Kg6 {[%emt 0:00:00]} 25. b4 {[%emt 0:00:00]} Be7 {[%emt 0:00:21]} 26. Ke2 {[%emt 0:01:25]} Rd8 {[%emt 0:01:50]} 27. Rd1 {[%emt 0:00:42]} Rxd1 {[%emt 0:00:01]} 28. Qe6+ {[%emt 0:00:51]} Bf6 {[%emt 0:00:00]} 29. Kxd1 {[%emt 0:00:00]} Qa7 {[%emt 0:00:31]} 30. Qb3 {[%emt 0:00:20]} Qd7+ {[%emt 0:00:23]} 31. Kc2 {[%emt 0:00:00]} Qb5 {[%emt 0:00:09]} 32. Qd3 {[%emt 0:00:00]} Qa4+ {[%emt 0:03:04]} 33. Kb1 {[%emt 0:00:00]} Qc6 {[%emt 0:00:49]} 34. f3 {[%emt 0:01:18]} Qe6 {[%emt 0:10:30]} 35. g4 {[%emt 0:02:53]} Kh6 {[%emt 0:01:50]} 36. gxf5 {[%emt 0:02:22]} Qe5 {[%emt 0:00:00]} 37. Qd4 {[%emt 0:00:00]} Qxf5+ {[%emt 0:05:43]} 38. Qe4 {[%emt 0:00:00]} Qxh3 {[%emt 0:00:05]} 39. Qf4+ {[%emt 0:02:20]} Bg5 {[%emt 0:00:56]} 40. Qd6+ {[%emt 0:00:00]} Bf6 {[%emt 0:00:27]} 41. Qf4+ {[%emt 2:00:29]} Kh5 {[%emt 2:04:42]} 42. c6 {[%emt 0:00:58]} Qf1+ {[%emt 0:00:00]} 43. Kc2 {[%emt 0:00:24]} Qe2+ {[%emt 0:00:00]} 44. Kb3 {[%emt 0:00:23]} Qd1+ {[%emt 0:00:00]} 45. Kc4 {[%emt 0:00:00]} Qc1+ {[%emt 0:01:23]} 46. Kb5 {[%emt 0:00:31]} Qxa3 {[%emt 0:01:22]} 47. Qf5+ {[%emt 0:02:10]} Kh6 {[%emt 0:00:22]} 48. c7 {[%emt 0:00:00]} 1-0

[Event "Klatovy Open-C 2024"]
[Site "Klatovy"]
[Date "2024.07.02"]
[Round "4.7"]
[White "Ondrejat, Miroslav"]
[Black "Havelka, Petr"]
[Result "1/2-1/2"]
[ECO "D68"]
[WhiteElo "1940"]
[BlackElo "1851"]
[Annotator "RC"]
[PlyCount "188"]
[EventDate "2024.06.21"]
[EventType "swiss"]
[EventCountry "CZE"]
[SourceTitle "playchess.com"]
[Source "ChessBase"]
[SourceQuality "1"]
[TimeControl "40/7200:0"]

1. d4 {[%emt 0:00:00]} d5 {[%emt 0:00:00]} 2. c4 {[%emt 0:00:00]} e6 {[%emt 0:00:00]} 3. Nc3 {[%emt 0:00:00]} Nf6 {[%emt 0:00:00]} 4. Bg5 {[%emt 0:00:00]} Be7 {[%emt 0:00:00]} 5. e3 {[%emt 0:00:00]} O-O {[%emt 0:00:00]} 6. Nf3 {[%emt 0:00:00]} Nbd7 {[%emt 0:00:46]} 7. Rc1 {[%emt 0:02:58]} c6 {[%emt 0:05:13]} 8. Bd3 {[%emt 0:01:33]} dxc4 {[%emt 0:02:35]} 9. Bxc4 {[%emt 0:00:00]} Nd5 {[%emt 0:01:25]} 10. Bxe7 {[%emt 0:00:00]} Qxe7 {[%emt 0:00:20]} 11. O-O {[%emt 0:00:00]} Nxc3 {[%emt 0:04:11]} 12. Rxc3 {[%emt 0:04:58]} e5 {[%emt 0:08:47]} 13. Re1 {[%emt 0:12:30]} e4 {[%emt 0:04:57]} 14. Nd2 {[%emt 0:00:00]} Nb6 {[%emt 0:00:00]} 15. Qc2 {[%emt 0:08:30]} Re8 {[%emt 0:06:18]} 16. a3 {[%emt 0:15:46]} Bf5 {[%emt 0:08:03]} 17. Bf1 {[%emt 0:09:13]} Rad8 {[%emt 0:01:45]} 18. Rc5 {[%emt 0:01:53]} Qf6 {[%emt 0:14:26]} 19. b4 {[%emt 0:02:35]} Bg6 {[%emt 0:02:37]} 20. Nb3 {[%emt 0:03:54]} Nd5 {[%emt 0:15:28]} 21. b5 {[%emt 0:15:06]} cxb5 {[%emt 0:19:48]} 22. Bxb5 {[%emt 0:02:07]} Re6 {[%emt 0:00:55]} 23. Bc4 {[%emt 0:02:28]} Rc6 {[%emt 0:03:15]} 24. Bxd5 {[%emt 0:07:53]} Rxd5 {[%emt 0:00:00]} 25. Rxc6 {[%emt 0:00:00]} bxc6 {[%emt 0:02:47]} 26. Rc1 {[%emt 0:01:30]} h5 {[%emt 0:04:27]} 27. Qxc6 {[%emt 0:00:00]} Qxc6 {[%emt 0:00:00]} 28. Rxc6 {[%emt 0:00:00]} Rb5 {[%emt 0:00:00]} 29. Rc3 {[%emt 0:03:31]} f6 {[%emt 0:00:00]} 30. h4 {[%emt 0:00:23]} Bf7 {[%emt 0:00:31]} 31. Nc5 {[%emt 0:01:26]} Bd5 {[%emt 0:01:27]} 32. Rc2 {[%emt 0:00:35]} Kf7 {[%emt 0:00:32]} 33. Kh2 {[%emt 0:00:16]} Ke7 {[%emt 0:00:00]} 34. Kg3 {[%emt 0:00:00]} g5 {[%emt 0:00:00]} 35. hxg5 {[%emt 0:02:20]} fxg5 {[%emt 0:00:00]} 36. f3 {[%emt 0:01:42]} exf3 {[%emt 0:00:00]} 37. gxf3 {[%emt 0:00:00]} Rb1 {[%emt 0:00:00]} 38. e4 {[%emt 0:00:10]} h4+ {[%emt 0:00:00]} 39. Kg4 {[%emt 0:02:23]} Rg1+ {[%emt 0:00:00]} 40. Kf5 {[%emt 0:00:00]} Bg8 {[%emt 0:00:00]} 41. Ke5 {[%emt 2:05:34]} h3 {[%emt 1:59:49]} 42. Rh2 {[%emt 0:00:14]} Rg3 {[%emt 0:00:00]} 43. Rb2 {[%emt 0:02:02]} Rxf3 {[%emt 0:00:00]} 44. Rb7+ {[%emt 0:00:00]} Kf8 {[%emt 0:00:04]} 45. Nd7+ {[%emt 0:00:00]} Kg7 {[%emt 0:00:56]} 46. Nf6+ {[%emt 0:00:00]} Kg6 {[%emt 0:00:00]} 47. Nxg8 {[%emt 0:00:00]} g4 {[%emt 0:00:00]} 48. Ne7+ {[%emt 0:00:00]} Kg5 {[%emt 0:00:40]} 49. Nf5 {[%emt 0:00:00]} Rxf5+ {[%emt 0:00:41]} 50. exf5 {[%emt 0:00:00]} h2 {[%emt 0:00:00]} 51. Rh7 {[%emt 0:00:00]} g3 {[%emt 0:00:00]} 52. f6 {[%emt 0:02:15]} g2 {[%emt 0:00:00]} 53. f7 {[%emt 0:00:00]} g1=Q {[%emt 0:02:51]} 54. Rg7+ {[%emt 0:00:00]} Kh4 {[%emt 0:00:25]} 55. Rxg1 {[%emt 0:00:16]} hxg1=Q {[%emt 0:00:00]} 56. f8=Q {[%emt 0:00:00]} Qe3+ {[%emt 0:00:00]} 57. Kd5 {[%emt 0:00:00]} Qb3+ {[%emt 0:00:00]} 58. Kc6 {[%emt 0:00:00]} Qa4+ {[%emt 0:00:00]} 59. Kb7 {[%emt 0:00:50]} Qd7+ {[%emt 0:01:14]} 60. Ka6 {[%emt 0:00:01]} Qa4+ {[%emt 0:00:00]} 61. Kb7 {[%emt 0:00:11]} Qd7+ {[%emt 0:00:00]} 62. Kb8 {[%emt 0:00:10]} Kg3 {[%emt 0:01:11]} 63. Qg8+ {[%emt 0:00:00]} Kf2 {[%emt 0:00:00]} 64. Qa2+ {[%emt 0:00:03]} Ke3 {[%emt 0:00:00]} 65. Qb3+ {[%emt 0:00:00]} Kf2 {[%emt 0:00:12]} 66. d5 {[%emt 0:00:00]} Kg1 {[%emt 0:00:28]} 67. Qb7 {[%emt 0:00:00]} Qd8+ {[%emt 0:00:00]} 68. Kxa7 {[%emt 0:00:00]} Qa5+ {[%emt 0:00:00]} 69. Qa6 {[%emt 0:00:06]} Qc7+ {[%emt 0:00:00]} 70. Ka8 {[%emt 0:00:00]} Qd8+ {[%emt 0:00:00]} 71. Kb7 {[%emt 0:00:00]} Qxd5+ {[%emt 0:00:00]} 72. Qc6 {[%emt 0:00:00]} Qf7+ {[%emt 0:00:00]} 73. Ka6 {[%emt 0:00:00]} Qf1+ {[%emt 0:00:00]} 74. Kb6 {[%emt 0:00:00]} Qb1+ {[%emt 0:00:00]} 75. Ka7 {[%emt 0:00:00]} Qh7+ {[%emt 0:00:00]} 76. Qb7 {[%emt 0:00:00]} Qc2 {[%emt 0:00:07]} 77. Qg7+ {[%emt 0:00:00]} Kh2 {[%emt 0:00:09]} 78. Qe5+ {[%emt 0:00:00]} Kg2 {[%emt 0:00:00]} 79. Qd6 {[%emt 0:00:00]} Qa4+ {[%emt 0:00:00]} 80. Kb6 {[%emt 0:00:00]} Qb3+ {[%emt 0:00:00]} 81. Kc7 {[%emt 1:59:43]} Qf7+ {[%emt 1:59:42]} 82. Kc6 {[%emt 0:00:00]} Qc4+ {[%emt 0:00:00]} 83. Qc5 {[%emt 0:00:00]} Qa6+ {[%emt 0:00:01]} 84. Kc7 {[%emt 0:00:00]} Qe2 {[%emt 0:00:06]} 85. a4 {[%emt 0:00:00]} Qg4 {[%emt 0:00:00]} 86. a5 {[%emt 0:00:00]} Qg7+ {[%emt 0:00:00]} 87. Kb6 {[%emt 0:00:00]} Kh3 {[%emt 0:00:05]} 88. Qc8+ {[%emt 0:00:00]} Kh4 {[%emt 0:00:00]} 89. Qc4+ {[%emt 0:00:00]} Kh3 {[%emt 0:00:00]} 90. a6 {[%emt 0:00:00]} Qf6+ {[%emt 0:00:00]} 91. Ka5 {[%emt 0:00:05]} Qd8+ {[%emt 0:00:00]} 92. Ka4 {[%emt 0:00:00]} Qd7+ {[%emt 0:00:00]} 93. Kb3 {[%emt 0:00:00]} Qd1+ {[%emt 0:00:00]} 94. Ka3 {[%emt 0:00:00]} Qd6+ {[%emt 0:00:46]} 1/2-1/2

[Event "Klatovy Open-C 2024"]
[Site "Klatovy"]
[Date "2024.07.02"]
[Round "4.8"]
[White "Turner, Radek"]
[Black "Macho, Miloslav"]
[Result "1-0"]
[ECO "E09"]
[WhiteElo "2012"]
[BlackElo "1845"]
[Annotator "RC"]
[PlyCount "155"]
[EventDate "2024.06.21"]
[EventType "swiss"]
[EventCountry "CZE"]
[SourceTitle "playchess.com"]
[Source "ChessBase"]
[SourceQuality "1"]
[TimeControl "40/7200:0"]

1. c4 {[%emt 0:00:00]} Nf6 {[%emt 0:00:00]} 2. g3 {[%emt 0:00:00]} e6 {[%emt 0:00:00]} 3. Nf3 {[%emt 0:00:00]} d5 {[%emt 0:00:33]} 4. Bg2 {[%emt 0:03:26]} Be7 {[%emt 0:02:45]} 5. O-O {[%emt 0:00:00]} O-O {[%emt 0:00:00]} 6. d4 {[%emt 0:00:00]} c6 {[%emt 0:00:06]} 7. Qc2 {[%emt 0:00:00]} Nbd7 {[%emt 0:01:22]} 8. Nbd2 {[%emt 0:00:00]} Re8 {[%emt 0:01:16]} 9. b3 {[%emt 0:00:00]} Nf8 {[%emt 0:04:30]} 10. Bb2 {[%emt 0:00:00]} Rb8 {[%emt 0:01:12]} 11. Rfd1 {[%emt 0:00:00]} Ng6 {[%emt 0:11:34]} 12. e4 {[%emt 0:00:05]} Bf8 {[%emt 0:04:28]} 13. Rac1 {[%emt 0:00:53]} Ne7 {[%emt 0:08:35]} 14. Ne5 {[%emt 0:06:38]} Nd7 {[%emt 0:03:22]} 15. Ndf3 {[%emt 0:00:07]} f6 {[%emt 0:01:21]} 16. Nxd7 {[%emt 0:00:28]} Bxd7 {[%emt 0:00:19]} 17. Ne1 {[%emt 0:05:22]} Rc8 {[%emt 0:04:43]} 18. Nd3 {[%emt 0:00:56]} b6 {[%emt 0:04:32]} 19. Qe2 {[%emt 0:01:13]} Ng6 {[%emt 0:07:56]} 20. f4 {[%emt 0:04:45]} c5 {[%emt 0:07:31]} 21. e5 {[%emt 0:02:07]} dxc4 {[%emt 0:01:19]} 22. Rxc4 {[%emt 0:02:33]} Bb5 {[%emt 0:00:46]} 23. Rcc1 {[%emt 0:00:00]} fxe5 {[%emt 0:01:45]} 24. dxe5 {[%emt 0:02:12]} Qe7 {[%emt 0:03:11]} 25. Ba3 {[%emt 0:02:18]} Qf7 {[%emt 0:00:30]} 26. Qe1 {[%emt 0:00:21]} Red8 {[%emt 0:03:45]} 27. Nf2 {[%emt 0:01:01]} Qe8 {[%emt 0:02:35]} 28. Ne4 {[%emt 0:00:11]} Rxd1 {[%emt 0:00:36]} 29. Rxd1 {[%emt 0:00:00]} Rd8 {[%emt 0:01:09]} 30. Nd6 {[%emt 0:01:03]} Bxd6 {[%emt 0:01:19]} 31. Rxd6 {[%emt 0:00:09]} Rd7 {[%emt 0:05:32]} 32. Bh3 {[%emt 0:01:02]} Nf8 {[%emt 0:00:34]} 33. Bb2 {[%emt 0:01:00]} Qh5 {[%emt 0:06:15]} 34. Bg2 {[%emt 0:04:23]} Qg4 {[%emt 0:03:44]} 35. h3 {[%emt 0:01:18]} Qf5 {[%emt 0:00:00]} 36. Bc3 {[%emt 0:04:05]} Qc2 {[%emt 0:06:00]} 37. a4 {[%emt 0:01:16]} Ba6 {[%emt 0:01:43]} 38. Rxd7 {[%emt 0:04:03]} Nxd7 {[%emt 0:00:00]} 39. Qd2 {[%emt 0:00:07]} Qb1+ {[%emt 0:00:38]} 40. Kh2 {[%emt 0:00:00]} Nf8 {[%emt 0:02:23]} 41. b4 {[%emt 2:00:59]} Bf1 {[%emt 2:03:34]} 42. Bc6 {[%emt 0:00:55]} c4 {[%emt 0:01:10]} 43. b5 {[%emt 0:01:01]} Qf5 {[%emt 0:00:47]} 44. g4 {[%emt 0:01:16]} Qf7 {[%emt 0:00:00]} 45. Kg3 {[%emt 0:01:08]} Bd3 {[%emt 0:00:00]} 46. Bb4 {[%emt 0:01:41]} Nd7 {[%emt 0:02:13]} 47. Qe3 {[%emt 0:00:20]} Nf8 {[%emt 0:00:02]} 48. Qd4 {[%emt 0:00:33]} h5 {[%emt 0:00:19]} 49. Qd8 {[%emt 0:01:13]} hxg4 {[%emt 0:00:00]} 50. hxg4 {[%emt 0:00:00]} g6 {[%emt 0:00:23]} 51. Be8 {[%emt 0:00:32]} Qg7 {[%emt 0:00:12]} 52. Qc8 {[%emt 0:02:44]} g5 {[%emt 0:00:21]} 53. Bh5 {[%emt 0:03:33]} gxf4+ {[%emt 0:00:00]} 54. Kxf4 {[%emt 0:00:06]} Qh6+ {[%emt 0:00:00]} 55. Kf3 {[%emt 0:00:40]} Qg7 {[%emt 0:00:00]} 56. g5 {[%emt 0:01:22]} Bf1 {[%emt 0:00:15]} 57. Bg4 {[%emt 0:01:22]} Qf7+ {[%emt 0:00:00]} 58. Ke3 {[%emt 0:00:23]} Kg7 {[%emt 0:00:00]} 59. Qxf8+ {[%emt 0:00:00]} Qxf8 {[%emt 0:00:00]} 60. Bxf8+ {[%emt 0:00:00]} Kxf8 {[%emt 0:00:00]} 61. Bxe6 {[%emt 0:00:00]} Ke7 {[%emt 0:00:00]} 62. Bd5 {[%emt 0:00:00]} c3 {[%emt 0:00:15]} 63. Bb3 {[%emt 0:00:00]} a6 {[%emt 0:00:00]} 64. bxa6 {[%emt 0:00:00]} Bxa6 {[%emt 0:00:00]} 65. Kd4 {[%emt 0:00:00]} b5 {[%emt 0:00:00]} 66. axb5 {[%emt 0:00:00]} Bxb5 {[%emt 0:00:00]} 67. Kxc3 {[%emt 0:00:00]} Be8 {[%emt 0:00:00]} 68. Kd4 {[%emt 0:00:00]} Bg6 {[%emt 0:00:00]} 69. Bd5 {[%emt 0:00:00]} Bh7 {[%emt 0:00:00]} 70. Be4 {[%emt 0:00:00]} Bg8 {[%emt 0:00:00]} 71. Bf5 {[%emt 0:00:00]} Ba2 {[%emt 0:00:00]} 72. Ke4 {[%emt 0:00:00]} Bb1+ {[%emt 0:00:00]} 73. Kf4 {[%emt 0:00:00]} Ba2 {[%emt 0:00:00]} 74. g6 {[%emt 0:00:00]} Bb3 {[%emt 0:00:00]} 75. Kg5 {[%emt 0:00:00]} Kf8 {[%emt 0:00:00]} 76. Kf6 {[%emt 0:00:00]} Bf7 {[%emt 0:00:08]} 77. g7+ {[%emt 0:00:00]} Ke8 {[%emt 0:00:00]} 78. Bd7+ {[%emt 0:00:00]} 1-0

[Event "Klatovy Open-C 2024"]
[Site "Klatovy"]
[Date "2024.07.02"]
[Round "4.9"]
[White "Danek, Vaclav"]
[Black "Pokora, Lubomir"]
[Result "1/2-1/2"]
[ECO "A00"]
[WhiteElo "1922"]
[BlackElo "1857"]
[Annotator "RC"]
[PlyCount "54"]
[EventDate "2024.06.21"]
[EventType "swiss"]
[EventCountry "CZE"]
[SourceTitle "playchess.com"]
[Source "ChessBase"]
[SourceQuality "1"]
[TimeControl "40/7200:0"]

1. b4 {[%emt 0:00:00]} e5 {[%emt 0:00:00]} 2. Bb2 {[%emt 0:00:00]} d6 {[%emt 0:00:00]} 3. e3 {[%emt 0:00:00]} Nd7 {[%emt 0:00:58]} 4. c4 {[%emt 0:00:00]} Ngf6 {[%emt 0:00:00]} 5. Be2 {[%emt 0:00:00]} Be7 {[%emt 0:00:03]} 6. Nc3 {[%emt 0:00:00]} c6 {[%emt 0:03:05]} 7. Nf3 {[%emt 0:00:00]} O-O {[%emt 0:00:57]} 8. O-O {[%emt 0:00:00]} Re8 {[%emt 0:04:17]} 9. Qb3 {[%emt 0:00:00]} h6 {[%emt 0:04:55]} 10. d3 {[%emt 0:00:00]} Nf8 {[%emt 0:02:06]} 11. a4 {[%emt 0:00:30]} Be6 {[%emt 0:07:25]} 12. Qc2 {[%emt 0:00:00]} N6d7 {[%emt 0:01:08]} 13. d4 {[%emt 0:00:23]} Bg4 {[%emt 0:05:32]} 14. h3 {[%emt 0:01:22]} Bh5 {[%emt 0:00:02]} 15. b5 {[%emt 0:00:56]} Bg6 {[%emt 0:12:13]} 16. Bd3 {[%emt 0:00:47]} Qc7 {[%emt 0:03:49]} 17. Nd2 {[%emt 0:05:43]} exd4 {[%emt 0:03:43]} 18. exd4 {[%emt 0:00:00]} Bf6 {[%emt 0:00:00]} 19. Nce4 {[%emt 0:00:34]} Be7 {[%emt 0:03:27]} 20. f4 {[%emt 0:00:35]} Nf6 {[%emt 0:02:46]} 21. Ng3 {[%emt 0:04:00]} Bxd3 {[%emt 0:01:58]} 22. Qxd3 {[%emt 0:00:00]} g6 {[%emt 0:02:42]} 23. d5 {[%emt 0:00:00]} cxd5 {[%emt 0:00:58]} 24. cxd5 {[%emt 0:00:00]} Qc5+ {[%emt 0:00:10]} 25. Qd4 {[%emt 0:03:22]} Qxd4+ {[%emt 0:04:47]} 26. Bxd4 {[%emt 0:00:00]} Nxd5 {[%emt 0:00:04]} 27. f5 {[%emt 0:00:26]} Bg5 {[%emt 0:22:09]} 1/2-1/2

[Event "Klatovy Open-C 2024"]
[Site "Klatovy"]
[Date "2024.07.02"]
[Round "4.10"]
[White "Cecil, Pavel"]
[Black "Navratilova, Alena"]
[Result "1/2-1/2"]
[ECO "A38"]
[WhiteElo "1896"]
[BlackElo "1729"]
[Annotator "NA RC"]
[PlyCount "35"]
[EventDate "2024.06.21"]
[EventType "swiss"]
[EventCountry "CZE"]
[SourceTitle "playchess.com"]
[Source "ChessBase"]
[SourceQuality "1"]
[TimeControl "40/7200:0"]

1. c4 {[%emt 0:00:00]} c5 {[%emt 0:00:00]} 2. Nc3 {[%emt 0:00:00]} Nf6 {[%emt 0:00:00]} 3. Nf3 {[%emt 0:00:00]} g6 {[%emt 0:00:00]} 4. g3 {[%emt 0:00:00]} Bg7 {[%emt 0:00:00]} 5. Bg2 {[%emt 0:00:00]} O-O {[%emt 0:00:00]} 6. O-O {[%emt 0:00:00]} d6 {[%emt 0:00:22]} 7. Rb1 {[%emt 0:08:00]} Nc6 {[%emt 0:01:15]} 8. a3 {[%emt 0:00:00]} a6 {[%emt 0:09:28]} 9. d3 {[%emt 0:03:47]} Rb8 {[%emt 0:04:17]} 10. Nd2 {[%emt 0:05:25]} Bd7 {[%emt 0:01:42]} 11. Nd5 {[%emt 0:09:01]} Re8 {[%emt 0:03:30]} 12. b4 {[%emt 0:04:20]} cxb4 {[%emt 0:01:44]} 13. Nxb4 {[%emt 0:03:42]} Nxb4 {[%emt 0:01:54]} 14. axb4 {[%emt 0:00:00]} Qc8 {[%emt 0:06:10]} 15. e4 {[%emt 0:07:53]} Bh3 {[%emt 0:07:13]} 16. Bb2 {[%emt 0:05:02]} Bxg2 {[%emt 0:02:34]} 17. Kxg2 {[%emt 0:00:00]} Nh5 {[%emt 0:06:05]} 18. Bxg7 {[%emt 0:00:14]} 1/2-1/2

[Event "Klatovy Open-C 2024"]
[Site "Klatovy"]
[Date "2024.07.04"]
[Round "6.1"]
[White "Kopta, Pavel"]
[Black "Chalus, Karel"]
[Result "1/2-1/2"]
[ECO "A88"]
[WhiteElo "2193"]
[BlackElo "1982"]
[Annotator "RC"]
[PlyCount "29"]
[EventDate "2024.06.21"]
[EventType "swiss"]
[EventCountry "CZE"]
[SourceTitle "playchess.com"]
[Source "ChessBase"]
[SourceQuality "1"]
[TimeControl "40/7200:0"]

1. d4 {[%emt 0:00:00]} f5 {[%emt 0:04:32]} 2. g3 {[%emt 0:01:12]} Nf6 {[%emt 0:00:00]} 3. Bg2 {[%emt 0:00:00]} g6 {[%emt 0:00:00]} 4. c4 {[%emt 0:00:13]} Bg7 {[%emt 0:00:00]} 5. Nc3 {[%emt 0:00:10]} c6 {[%emt 0:00:00]} 6. Nf3 {[%emt 0:01:57]} O-O {[%emt 0:01:06]} 7. O-O {[%emt 0:00:00]} d6 {[%emt 0:00:35]} 8. Re1 {[%emt 0:03:12]} Na6 {[%emt 0:00:00]} 9. a3 {[%emt 0:12:39]} Nc7 {[%emt 0:06:36]} 10. Qc2 {[%emt 0:03:57]} Bd7 {[%emt 0:13:49]} 11. b3 {[%emt 0:05:38]} Rb8 {[%emt 0:07:46]} 12. a4 {[%emt 0:03:05]} a5 {[%emt 0:02:31]} 13. Bb2 {[%emt 0:03:14]} Na6 {[%emt 0:00:54]} 14. Rad1 {[%emt 0:01:51]} Nb4 {[%emt 0:05:48]} 15. Qc1 {[%emt 0:04:25]} 1/2-1/2

[Event "Klatovy Open-C 2024"]
[Site "Klatovy"]
[Date "2024.07.04"]
[Round "6.2"]
[White "Ondrejat, Miroslav"]
[Black "Korsa, Jindrich"]
[Result "1/2-1/2"]
[ECO "D67"]
[WhiteElo "1940"]
[BlackElo "2036"]
[Annotator "RC"]
[PlyCount "142"]
[EventDate "2024.06.21"]
[EventType "swiss"]
[EventCountry "CZE"]
[SourceTitle "playchess.com"]
[Source "ChessBase"]
[SourceQuality "1"]
[TimeControl "40/7200:0"]

1. d4 {[%emt 0:00:00]} Nf6 {[%emt 0:00:00]} 2. c4 {[%emt 0:00:00]} e6 {[%emt 0:00:00]} 3. Nc3 {[%emt 0:00:00]} d5 {[%emt 0:00:00]} 4. Bg5 {[%emt 0:00:06]} Be7 {[%emt 0:00:00]} 5. e3 {[%emt 0:00:00]} O-O {[%emt 0:00:00]} 6. Nf3 {[%emt 0:00:00]} c6 {[%emt 0:00:00]} 7. Rc1 {[%emt 0:01:09]} Nbd7 {[%emt 0:00:00]} 8. Bd3 {[%emt 0:02:30]} dxc4 {[%emt 0:02:22]} 9. Bxc4 {[%emt 0:02:40]} Nd5 {[%emt 0:00:00]} 10. Bxe7 {[%emt 0:00:00]} Qxe7 {[%emt 0:00:00]} 11. O-O {[%emt 0:00:00]} Nxc3 {[%emt 0:02:11]} 12. Rxc3 {[%emt 0:00:00]} b5 {[%emt 0:00:59]} 13. Bd3 {[%emt 0:06:24]} Bb7 {[%emt 0:00:17]} 14. Qe2 {[%emt 0:05:20]} Rac8 {[%emt 0:01:29]} 15. Rfc1 {[%emt 0:07:16]} b4 {[%emt 0:00:20]} 16. R3c2 {[%emt 0:09:25]} c5 {[%emt 0:00:00]} 17. Ba6 {[%emt 0:04:10]} Bxa6 {[%emt 0:00:41]} 18. Qxa6 {[%emt 0:00:00]} Rc7 {[%emt 1:51:41]} 19. dxc5 {[%emt 1:21:00]} Nxc5 {[%emt 0:00:00]} 20. Qa5 {[%emt 0:00:00]} Rfc8 {[%emt 0:00:00]} 21. Qxb4 {[%emt 0:00:00]} Qd8 {[%emt 0:00:00]} 22. Rd2 {[%emt 0:00:00]} Nd3 {[%emt 0:00:00]} 23. Rcd1 {[%emt 0:00:00]} Rd7 {[%emt 0:00:00]} 24. Qb5 {[%emt 0:00:00]} Rc5 {[%emt 0:00:00]} 25. Qa6 {[%emt 0:00:00]} Rcd5 {[%emt 0:00:00]} 26. h3 {[%emt 0:00:00]} Nxb2 {[%emt 0:00:00]} 27. Rxd5 {[%emt 0:00:00]} Nxd1 {[%emt 0:00:00]} 28. Rc5 {[%emt 0:00:00]} Rc7 {[%emt 0:00:00]} 29. Rxc7 {[%emt 0:00:00]} Qxc7 {[%emt 0:00:00]} 30. Qa4 {[%emt 0:00:00]} Qd8 {[%emt 0:00:00]} 31. Qxa7 {[%emt 0:00:00]} Nc3 {[%emt 0:00:00]} 32. Ne5 {[%emt 0:00:00]} Qe8 {[%emt 0:00:00]} 33. a3 {[%emt 0:00:00]} f6 {[%emt 0:00:00]} 34. Qd7 {[%emt 0:00:00]} Qxd7 {[%emt 0:00:00]} 35. Nxd7 {[%emt 0:00:00]} Kf7 {[%emt 0:00:00]} 36. Nb6 {[%emt 0:00:00]} Ke7 {[%emt 0:00:00]} 37. Nc4 {[%emt 0:00:00]} Kd7 {[%emt 0:00:00]} 38. f3 {[%emt 0:00:00]} Kc6 {[%emt 0:00:00]} 39. Kf2 {[%emt 0:00:00]} Kc5 {[%emt 0:00:00]} 40. Nd2 {[%emt 0:00:00]} f5 {[%emt 0:00:00]} 41. g4 {[%emt 1:50:08]} Nb5 {[%emt 1:01:22]} 42. gxf5 {[%emt 0:03:57]} exf5 {[%emt 0:04:40]} 43. a4 {[%emt 0:01:34]} Nc7 {[%emt 0:02:54]} 44. Kg3 {[%emt 0:00:35]} Ne6 {[%emt 0:00:00]} 45. Nb3+ {[%emt 0:00:30]} Kc4 {[%emt 0:07:23]} 46. Nd2+ {[%emt 0:00:45]} Kb4 {[%emt 0:06:21]} 47. e4 {[%emt 0:00:32]} f4+ {[%emt 0:00:00]} 48. Kg4 {[%emt 0:00:00]} g6 {[%emt 0:00:00]} 49. e5 {[%emt 0:00:00]} Kxa4 {[%emt 0:00:00]} 50. Ne4 {[%emt 0:00:00]} Kb4 {[%emt 0:02:08]} 51. Nf6 {[%emt 0:00:00]} h6 {[%emt 0:21:10]} 52. Nd5+ {[%emt 0:00:00]} Kc5 {[%emt 0:00:00]} 53. Nxf4 {[%emt 0:00:00]} Nf8 {[%emt 0:00:00]} 54. h4 {[%emt 0:00:44]} Kc6 {[%emt 0:00:00]} 55. h5 {[%emt 0:00:06]} g5 {[%emt 0:00:11]} 56. Ng6 {[%emt 0:00:00]} Ne6 {[%emt 0:01:56]} 57. Ne7+ {[%emt 0:00:00]} Kd7 {[%emt 0:00:00]} 58. Ng8 {[%emt 0:00:00]} Nd4 {[%emt 0:00:02]} 59. Nxh6 {[%emt 0:00:00]} Ke6 {[%emt 0:00:00]} 60. f4 {[%emt 0:00:00]} gxf4 {[%emt 0:00:00]} 61. Kxf4 {[%emt 0:00:00]} Ne2+ {[%emt 0:00:00]} 62. Kg5 {[%emt 0:00:00]} Nd4 {[%emt 0:00:00]} 63. Ng4 {[%emt 0:00:00]} Kf7 {[%emt 0:00:00]} 64. h6 {[%emt 0:00:00]} Ne6+ {[%emt 0:00:00]} 65. Kf5 {[%emt 0:00:00]} Nd4+ {[%emt 0:00:00]} 66. Ke4 {[%emt 0:00:00]} Ne6 {[%emt 0:00:00]} 67. Kd5 {[%emt 0:00:00]} Ng5 {[%emt 0:00:00]} 68. Nf6 {[%emt 0:00:00]} Kg6 {[%emt 0:00:00]} 69. h7 {[%emt 0:00:00]} Kg7 {[%emt 0:00:00]} 70. e6 {[%emt 0:00:00]} Nxe6 {[%emt 0:00:00]} 71. Kxe6 {[%emt 0:00:00]} Kh8 {[%emt 0:00:00]} 1/2-1/2